fUSD/lending_fUSD_20251013
["ID","MTS","AMOUNT","RATE_DAILY","PERIOD"]
[391124690,1760370634359,-1224.99010281,0.0001622,2]
[391124691,1760370634368,-414.63045113,0.00016438,2]
[391124692,1760370634380,-113.07290238,0.00016438,2]
[391124693,1760370634390,-168.0,0.00016484,2]
[391124694,1760370634400,-1000.0,0.000165,2]
[391124695,1760370634409,-404.52375,0.00016918,2]
[391124696,1760370634418,-1000.0,0.00017,2]
[391124697,1760370634428,-250.0,0.00017,2]
[391124698,1760370634437,-263.8636,0.00017,2]
[391124699,1760370634446,-168.0,0.00017038,2]
[391124700,1760370634458,-708.49968933,0.000175,2]
[391124701,1760370634471,-291.50031067,0.000175,2]
[391124702,1760370634480,-1196.383,0.00017511,2]
[391124703,1760370634489,-2545.0,0.00017511,2]
[391124704,1760370634498,-475.32661018,0.00017595,2]
[391124705,1760370634508,-1000.0,0.00018,2]
[391124706,1760370634517,-1291.20128174,0.00018,2]
[391124707,1760370634527,-1000.0,0.000185,2]
[391124708,1760370634536,-1000.0,0.000185,2]
[391124709,1760370634546,-404.52375,0.00018716,2]
[391124710,1760370634555,-166.66,0.00018786,2]
[391124711,1760370634564,-339.77789144,0.00019,2]
[391124712,1760370634576,-3209.28922943,0.00019,2]
[391124713,1760370634585,-1000.0,0.00019,2]
[391124714,1760370634594,-263.86361,0.00019,2]
[391124715,1760370634604,-166.66,0.00019182,2]
[391124716,1760370634614,-1000.0,0.000195,2]
[391124717,1760370634623,-166.66,0.00019577,2]
[391124718,1760370634633,-19.47790906,0.00019726,2]
[391124719,1760370634646,-1401.20495247,0.00019726,2]
[391124720,1760370634661,-1127.84011421,0.00019726,2]
[391124721,1760370634672,-807.913,0.00019726,2]
[391124722,1760370634683,-925.10525915,0.00019726,2]
[391124723,1760370634694,-713.83442561,0.00019726,2]
[391124724,1760370634705,-605.71259571,0.00019726,2]
[391124725,1760370634717,-3115.61143538,0.00019726,2]
[391124726,1760370634727,-1508.67617989,0.00019726,2]
[391124727,1760370634738,-609.83448956,0.00019726,2]
[391124728,1760370634749,-1182.67376955,0.00019726,2]
[391124729,1760370634760,-2933.58272139,0.00019726,2]
[391124730,1760370634771,-58.65314802,0.00019726,2]
[391124731,1760370634780,-166.66,0.00019973,2]
[391124732,1760370634790,-84.00036638,0.0002,2]
[391124733,1760370634802,-118.92963362,0.0002,2]
[391124734,1760370634812,-212.94272914,0.0002,2]
[391124735,1760370638337,-497.42210047,0.0002,2]
[391124736,1760370638433,-289.63517039,0.0002,2]
[391124737,1760370638443,-111.98104461,0.00020368,2]
[391124738,1760370638454,-54.67895539,0.00020368,2]
[391124739,1760370638464,-1000.0,0.000205,2]
[391124740,1760370638473,-2545.0,0.00020511,2]
[391124741,1760370638482,-404.52375,0.00020514,2]
[391124742,1760370638492,-31.18780666,0.00020764,2]
[391124743,1760370638530,-135.47219334,0.00020764,2]
[391124744,1760370638540,-951.379391,0.00020797,2]
[391124745,1760370638550,-1000.0,0.00021,2]
[391124746,1760370638560,-263.8636,0.00021,2]
[391124747,1760370638570,-567.7524591,0.000215,2]
[391124748,1760370638581,-274.3324121,0.000215,2]
[391124749,1760370638593,-157.9151288,0.000215,2]
[391124750,1760370638602,-1000.0,0.00022,2]
[391124751,1760370638619,-420.25470027,0.00022314,2]
[391124752,1760370638628,-646.65982734,0.00022314,2]
[391124753,1760370638638,-1000.0,0.000225,2]
[391124754,1760370638648,-253.0,0.00022859,2]
[391124755,1760370638657,-587.9703436,0.00023,2]
[391124756,1760370638668,-412.0296564,0.00023,2]
[391124757,1760370638678,-263.8636,0.00023,2]
[391124758,1760370638687,-376.7877906,0.00023368,2]
[391124759,1760370638698,-472.09048088,0.00023368,2]
[391124796,1760370641007,-865.04172852,0.00023368,2]
[391124797,1760370641017,-1226.65,0.00023368,2]
[391124798,1760370641027,-1000.0,0.000235,2]
[391124799,1760370641037,-2545.0,0.00023511,2]
[391124800,1760370641046,-443.76,0.00023836,2]
[391124801,1760370641056,-1000.0,0.00024,2]
[391124802,1760370641065,-1756.709,0.00024387,6]
[391124803,1760370641075,-1959.8625,0.0002439,2]
[391124804,1760370641084,-26360.46049964,0.000245,2]
[391124805,1760370641094,-1000.0,0.000245,2]
[391124806,1760370641103,-1000.0,0.00024658,2]
[391124807,1760370641113,-778.7915,0.000247,2]
[391124808,1760370641122,-500.0,0.00024873,2]
[391124809,1760370641132,-500.0,0.00024873,2]
[391124810,1760370641142,-360.77,0.0002488,2]
[391124811,1760370641156,-360.77,0.0002489,2]
[391124812,1760370641165,-168.76613945,0.0002489,2]
[391124813,1760370641175,-68619.1116846,0.0002489,3]
[391124814,1760370641184,-360.77,0.0002489,2]
[391124815,1760370641194,-360.77,0.0002489,2]
[391124816,1760370641204,-360.77,0.0002489,2]
[391124817,1760370641213,-162.61,0.0002489,2]
[391124818,1760370641223,-444.13741351,0.00024899,2]
[391124819,1760370641233,-153.0291382,0.00024899,2]
[391124820,1760370641243,-10585.08142201,0.000249,8]
[391124821,1760370641252,-34604.77661124,0.000249,2]
[391124822,1760370641264,-2780.59593106,0.000249,2]
[391124823,1760370641283,-1000.0,0.000249,2]
[391124824,1760370641294,-2146.13082938,0.000249,2]
[391124825,1760370641305,-1045.73321615,0.000249,2]
[391124826,1760370641321,-1183.75,0.000249,2]
[391124827,1760370641331,-880.0301178,0.000249,2]
[391124828,1760370641343,-4611.76540006,0.000249,2]
[391124829,1760370641354,-1654.10827272,0.000249,2]
[391124830,1760370641370,-269.36548125,0.000249,2]
[391124835,1760370643536,-316.31307033,0.0001615,2]
[391124836,1760370643546,-379.50386134,0.0001615,2]
[391124837,1760370643555,-5141.78652711,0.000249,2]
[391124838,1760370643567,-25059.34708095,0.000249,2]
[391124839,1760370643578,-14412.73582692,0.000249,2]
[391124842,1760370646506,-3813.91009867,0.000249,2]
[391124843,1760370646743,-11671.9445107,0.000249,2]
[391124844,1760370646755,-418.06931013,0.000249,2]
[391124845,1760370726642,157.09,0.00012163,2]
[391124849,1760370917103,640.0,0.00025184,120]
[391124863,1760371715280,204.39593749,0.00010436,2]
[391124864,1760371803166,1047.0,0.00012337,2]
[391124865,1760371817488,1008.34537892,0.00027397,120]
[391124869,1760371831534,-473.38,0.00013699,2]
[391124870,1760371831544,-28.26312512,0.00013711,2]
[391124871,1760371831556,-271.73687488,0.00013711,2]
[391124872,1760371831565,-119.47386902,0.00013724,2]
[391124873,1760371831577,-1880.52613098,0.00013724,2]
[391124874,1760371831586,-250.0,0.00013749,2]
[391124875,1760371831595,-473.61710263,0.000138,2]
[391124876,1760371831606,-1635.80895032,0.000138,2]
[391124877,1760371831632,-390.57394705,0.000138,2]
[391124878,1760371831643,-504.31097253,0.0001381,2]
[391124879,1760371831653,-157.09,0.00013901,2]
[391124880,1760371831662,-195.0,0.00013902,2]
[391124881,1760371831671,-435.42027378,0.00013902,2]
[391124882,1760371831681,-300.0,0.00013902,2]
[391124883,1760371831690,-195.0,0.00013905,2]
[391124884,1760371831699,-1200.0,0.00014072,2]
[391124885,1760371831709,-300.0,0.00014997,2]
[391124886,1760371831718,-300.0,0.00014997,2]
[391124887,1760371831728,-1200.0,0.00014998,2]
[391124888,1760371831737,-1315.430768,0.00014999,2]
[391124889,1760371831746,-160.0,0.00015,2]
[391124890,1760371831755,-300.0,0.00015068,2]
[391124891,1760371831764,-2022.28970208,0.00015068,2]
[391124892,1760371831773,-195.0,0.00015068,2]
[391124893,1760371831783,-469.8394911,0.00015068,2]
[391124894,1760371831795,-2030.1605089,0.00015068,2]
[391124895,1760371831804,-250.0,0.00015068,2]
[391124896,1760371831814,-151.64688807,0.00015068,2]
[391124897,1760371831823,-2000.0,0.00015068,2]
[391124898,1760371831833,-300.0,0.00015068,2]
[391124899,1760371831842,-4152.9495606,0.00015074,2]
[391124900,1760371831851,-300.0,0.0001529,2]
[391124901,1760371831860,-2500.0,0.00015291,2]
[391124902,1760371831869,-195.0,0.00015291,2]
[391124903,1760371831879,-300.0,0.00015291,2]
[391124905,1760371831894,-300.0,0.00015291,2]
[391124907,1760371831903,-2500.0,0.00015291,2]
[391124909,1760371831913,-250.0,0.00015291,2]
[391124943,1760371832248,-195.0,0.00015291,2]
[391124945,1760371832259,-2000.0,0.00015291,2]
[391124948,1760371832268,-300.0,0.00015291,2]
[391124950,1760371832278,-1680.0,0.00015479,2]
[391124952,1760371832287,-157.09,0.00015639,2]
[391124953,1760371832297,-151.17,0.00016012,2]
[391124956,1760371832306,-420.0,0.00016413,2]
[391124957,1760371832315,-510.0,0.00016422,2]
[391124960,1760371832325,-218.08138793,0.00016438,2]
[391124962,1760371832335,-3187.52955498,0.00016787,2]
[391124964,1760371832344,-5478.06971844,0.00016911,2]
[391124966,1760371832353,-200.0,0.00016912,2]
[391124967,1760371832363,-151.0,0.00016912,2]
[391124970,1760371832372,-151.0,0.00016912,2]
[391124972,1760371832382,-151.0,0.00016912,2]
[391124974,1760371832398,-151.0,0.00016912,2]
[391124976,1760371832408,-151.0,0.00016912,2]
[391124978,1760371832417,-169.87406304,0.00016912,2]
[391124979,1760371832426,-151.0,0.00016912,2]
[391124982,1760371832436,-256.00152142,0.00016912,2]
[391124984,1760371832446,-500.0,0.00016921,2]
[391124986,1760371832456,-500.0,0.00016921,2]
[391124988,1760371832466,-500.0,0.00016921,2]
[391124989,1760371832475,-500.0,0.00016921,2]
[391124991,1760371832485,-500.0,0.00016921,2]
[391124993,1760371832494,-473.93899471,0.00016921,2]
[391124995,1760371832503,-22165.06002647,0.00016922,2]
[391124998,1760371832516,-15380.53997353,0.00016922,2]
[391125000,1760371832525,-150.99,0.00016922,2]
[391125002,1760371832535,-4120.0,0.00016995,2]
[391125004,1760371832544,-602.59264988,0.00016995,2]
[391125006,1760371832555,-3021.63240502,0.00016995,2]
[391125008,1760371832567,-2911.9219451,0.00016995,2]
[391125010,1760371832576,-622.0,0.00016995,2]
[391125012,1760371832585,-250.0,0.00017,2]
[391125014,1760371832595,-2351.0,0.00017027,2]
[391125016,1760371832605,-226.0,0.00017289,2]
[391125018,1760371832615,-226.0,0.00017312,2]
[391125020,1760371832624,-226.0,0.00017359,2]
[391125022,1760371832633,-217.94256704,0.00017374,2]
[391125024,1760371832646,-157.09,0.00017376,2]
[391125026,1760371832655,-226.0,0.00017412,2]
[391125028,1760371832665,-319.0,0.00017425,2]
[391125030,1760371832674,-226.0,0.00017458,2]
[391125032,1760371832683,-226.0,0.00017472,2]
[391125034,1760371832692,-226.0,0.00017475,2]
[391125036,1760371832702,-255.0,0.0001763,2]
[391125038,1760371832711,-226.0,0.00017646,2]
[391125041,1760371832720,-226.0,0.00017666,2]
[391125043,1760371832729,-475.32661018,0.00017668,2]
[391125045,1760371832738,-226.0,0.00017679,2]
[391125047,1760371832747,-236.43385587,0.000177,2]
[391125049,1760371832756,-275.17849064,0.000177,2]
[391125051,1760371832765,-226.0,0.00017779,2]
[391125053,1760371832775,-3212.74,0.000178,2]
[391125055,1760371832784,-236.43385587,0.000178,2]
[391125057,1760371832793,-223.8624407,0.000178,2]
[391125059,1760371832802,-2751.0,0.0001787,2]
[391125061,1760371832811,-223.8624407,0.000179,2]
[391125063,1760371832820,-226.0,0.00017915,2]
[391125065,1760371832830,-587.0,0.00017964,2]
[391125067,1760371832839,-170.19128293,0.00018,2]
[391125069,1760371832847,-239.32768675,0.00018,2]
[391125070,1760371832857,-1068.117335,0.00018,2]
[391125072,1760371832866,-230.44858083,0.00018,2]
[391125075,1760371832875,-226.0,0.00018047,2]
[391125077,1760371832884,-3074.0,0.00018087,2]
[391125079,1760371832897,-223.8624407,0.000181,2]
[391125081,1760371832906,-1068.117335,0.000182,2]
[391125083,1760371832915,-226.0,0.00018207,2]
[391125085,1760371832924,-226.0,0.00018281,2]
[391125087,1760371832933,-223.8624407,0.000183,2]
[391125089,1760371832943,-640.0,0.00018316,2]
[391125091,1760371832954,-226.0,0.00018324,2]
[391125093,1760371832963,-175.53,0.00018335,2]
[391125095,1760371832972,-226.0,0.00018346,2]
[391125097,1760371832982,-187.71,0.00018396,2]
[391125099,1760371832991,-1068.117335,0.000184,2]
[391125101,1760371833000,-226.0,0.00018407,2]
[391125103,1760371833010,-223.8624407,0.000185,2]
[391125105,1760371833019,-1068.117335,0.000185,2]
[391125107,1760371833028,-2048.0,0.00018501,2]
[391125109,1760371833037,-1266.0,0.00018501,2]
[391125111,1760371833047,-740.0,0.00018501,2]
[391125113,1760371833056,-3405.0,0.00018501,2]
[391125115,1760371833067,-626.783,0.00018501,2]
[391125118,1760371833076,-1587.0,0.00018501,2]
[391125120,1760371833086,-588.532,0.00018501,2]
[391125122,1760371833096,-1309.0,0.00018501,2]
[391125124,1760371833108,-822.0,0.00018501,2]
[391125126,1760371833118,-226.0,0.00018518,2]
[391125128,1760371833127,-226.0,0.00018588,2]
[391125130,1760371833139,-226.0,0.00018635,2]
[391125132,1760371833149,-226.0,0.00018651,2]
[391125134,1760371833159,-250.0,0.00018653,2]
[391125136,1760371833168,-1068.117335,0.000187,2]
[391125138,1760371833178,-1200.0,0.0001873,2]
[391125140,1760371833188,-1068.117335,0.000189,2]
[391125142,1760371833198,-226.0,0.00018967,2]
[391125144,1760371833209,-226.0,0.00019028,2]
[391125146,1760371833219,-226.0,0.0001908,2]
[391125148,1760371833228,-1068.117335,0.000191,2]
[391125150,1760371833238,-157.09,0.00019114,2]
[391125152,1760371833248,-1474.21,0.00019178,30]
[391125154,1760371833257,-1068.117335,0.000193,2]
[391125156,1760371833267,-1068.117335,0.000195,2]
[391125158,1760371833276,-823.0,0.0001966,2]
[391125160,1760371833285,-2000.0,0.000197,2]
[391125162,1760371833295,-1068.117335,0.000197,2]
[391125164,1760371833304,-150.0,0.0002,2]
[391125166,1760371833313,-161.66668498,0.00020094,2]
[391125168,1760371833323,-473.38,0.00020187,2]
[391125170,1760371833332,-640.0,0.00020605,2]
[391125172,1760371833341,-157.09,0.00020852,2]
[391125174,1760371833351,-500.0,0.00021123,2]
[391125176,1760371833360,-500.0,0.00021123,2]
[391125178,1760371833369,-500.0,0.00021123,2]
[391125180,1760371833379,-500.0,0.00021123,2]
[391125182,1760371833389,-500.0,0.00021123,2]
[391125184,1760371833399,-500.0,0.00021123,2]
[391125186,1760371833408,-500.0,0.00021123,2]
[391125188,1760371833418,-500.0,0.00021123,2]
[391125190,1760371833427,-500.0,0.00021123,2]
[391125192,1760371833436,-500.0,0.00021123,2]
[391125194,1760371833446,-500.0,0.00021123,2]
[391125196,1760371833456,-500.0,0.00021123,2]
[391125198,1760371833465,-500.0,0.00021123,2]
[391125200,1760371833474,-500.0,0.00021123,2]
[391125202,1760371833484,-500.0,0.00021123,2]
[391125204,1760371833493,-500.0,0.00021123,2]
[391125206,1760371833502,-500.0,0.00021123,2]
[391125208,1760371833511,-500.0,0.00021123,2]
[391125210,1760371833521,-500.0,0.00021123,2]
[391125212,1760371833530,-500.0,0.00021123,2]
[391125214,1760371833539,-500.0,0.00021123,2]
[391125216,1760371833548,-500.0,0.00021123,2]
[391125218,1760371833558,-500.0,0.00021123,2]
[391125220,1760371833567,-500.0,0.00021123,2]
[391125222,1760371833576,-500.0,0.00021123,2]
[391125224,1760371833586,-500.0,0.00021123,2]
[391125226,1760371833595,-500.0,0.00021123,2]
[391125228,1760371833604,-500.0,0.00021123,2]
[391125230,1760371833614,-500.0,0.00021123,2]
[391125232,1760371833623,-500.0,0.00021123,2]
[391125234,1760371833632,-500.0,0.00021123,2]
[391125236,1760371833645,-783.0,0.00021123,2]
[391125238,1760371833655,-500.0,0.00021123,2]
[391125240,1760371833664,-500.0,0.00021123,2]
[391125242,1760371833673,-500.0,0.00021123,2]
[391125243,1760371833683,-500.0,0.00021123,2]
[391125244,1760371833692,-500.0,0.00021123,2]
[391125245,1760371833701,-500.0,0.00021123,2]
[391125246,1760371833710,-500.0,0.00021123,2]
[391125247,1760371833722,-500.0,0.00021123,2]
[391125248,1760371833731,-500.0,0.00021123,2]
[391125249,1760371833740,-500.0,0.00021123,2]
[391125250,1760371833749,-500.0,0.00021123,2]
[391125251,1760371833759,-500.0,0.00021123,2]
[391125252,1760371833768,-500.0,0.00021123,2]
[391125253,1760371833776,-500.0,0.00021123,2]
[391125254,1760371833785,-500.0,0.00021123,2]
[391125255,1760371833794,-500.0,0.00021123,2]
[391125256,1760371833804,-500.0,0.00021123,2]
[391125257,1760371833813,-500.0,0.00021123,2]
[391125258,1760371833822,-500.0,0.00021123,2]
[391125259,1760371833832,-500.0,0.00021123,2]
[391125260,1760371833841,-500.0,0.00021123,2]
[391125261,1760371833850,-500.0,0.00021123,2]
[391125262,1760371833859,-500.0,0.00021123,2]
[391125263,1760371833868,-500.0,0.00021123,2]
[391125264,1760371833877,-500.0,0.00021123,2]
[391125265,1760371833889,-500.0,0.00021123,2]
[391125266,1760371833898,-500.0,0.00021123,2]
[391125267,1760371833908,-500.0,0.00021123,2]
[391125268,1760371833917,-500.0,0.00021123,2]
[391125269,1760371833926,-500.0,0.00021123,2]
[391125270,1760371833936,-500.0,0.00021123,2]
[391125271,1760371833945,-500.0,0.00021123,2]
[391125272,1760371833954,-500.0,0.00021123,2]
[391125273,1760371833964,-500.0,0.00021123,2]
[391125274,1760371833972,-500.0,0.00021123,2]
[391125275,1760371833982,-500.0,0.00021123,2]
[391125276,1760371833991,-500.0,0.00021123,2]
[391125277,1760371834001,-500.0,0.00021123,2]
[391125278,1760371834010,-500.0,0.00021123,2]
[391125279,1760371834020,-500.0,0.00021123,2]
[391125280,1760371834029,-500.0,0.00021123,2]
[391125281,1760371834039,-500.0,0.00021123,2]
[391125282,1760371834050,-500.0,0.00021123,2]
[391125283,1760371834060,-500.0,0.00021123,2]
[391125284,1760371834069,-817.0,0.00021123,2]
[391125285,1760371834079,-500.0,0.00021123,2]
[391125286,1760371834088,-500.0,0.00021123,2]
[391125287,1760371834101,-500.0,0.00021123,2]
[391125288,1760371834110,-500.0,0.00021123,2]
[391125289,1760371834119,-500.0,0.00021123,2]
[391125290,1760371834128,-500.0,0.00021123,2]
[391125291,1760371834139,-500.0,0.00021123,2]
[391125292,1760371834149,-500.0,0.00021123,2]
[391125293,1760371834158,-500.0,0.00021123,2]
[391125294,1760371834168,-500.0,0.00021123,2]
[391125295,1760371834179,-500.0,0.00021123,2]
[391125296,1760371834189,-500.0,0.00021123,2]
[391125297,1760371834198,-500.0,0.00021123,2]
[391125298,1760371834207,-500.0,0.00021123,2]
[391125299,1760371834217,-500.0,0.00021123,2]
[391125300,1760371834226,-500.0,0.00021123,2]
[391125301,1760371834235,-500.0,0.00021123,2]
[391125302,1760371834244,-500.0,0.00021123,2]
[391125303,1760371834253,-500.0,0.00021123,2]
[391125304,1760371834263,-500.0,0.00021123,2]
[391125305,1760371834272,-500.0,0.00021123,2]
[391125306,1760371834281,-500.0,0.00021123,2]
[391125307,1760371834290,-500.0,0.00021123,2]
[391125308,1760371834299,-500.0,0.00021123,2]
[391125309,1760371834308,-500.0,0.00021123,2]
[391125310,1760371834318,-500.0,0.00021123,2]
[391125311,1760371834327,-500.0,0.00021123,2]
[391125312,1760371834337,-500.0,0.00021123,2]
[391125313,1760371834346,-500.0,0.00021123,2]
[391125314,1760371834356,-500.0,0.00021123,2]
[391125315,1760371834365,-500.0,0.00021123,2]
[391125316,1760371834373,-500.0,0.00021123,2]
[391125317,1760371834383,-500.0,0.00021123,2]
[391125318,1760371834392,-500.0,0.00021123,2]
[391125319,1760371834402,-500.0,0.00021123,2]
[391125320,1760371834411,-500.0,0.00021123,2]
[391125321,1760371834420,-500.0,0.00021123,2]
[391125322,1760371834429,-500.0,0.00021123,2]
[391125323,1760371834439,-500.0,0.00021123,2]
[391125324,1760371834448,-500.0,0.00021123,2]
[391125325,1760371834456,-500.0,0.00021123,2]
[391125326,1760371834467,-500.0,0.00021123,2]
[391125327,1760371834476,-500.0,0.00021123,2]
[391125328,1760371834485,-500.0,0.00021123,2]
[391125329,1760371834495,-500.0,0.00021123,2]
[391125330,1760371834504,-500.0,0.00021123,2]
[391125331,1760371834513,-500.0,0.00021123,2]
[391125332,1760371834522,-500.0,0.00021123,2]
[391125333,1760371834531,-500.0,0.00021123,2]
[391125334,1760371834540,-500.0,0.00021123,2]
[391125335,1760371834550,-500.0,0.00021123,2]
[391125336,1760371834559,-500.0,0.00021123,2]
[391125337,1760371834569,-500.0,0.00021123,2]
[391125338,1760371834578,-500.0,0.00021123,2]
[391125339,1760371834587,-500.0,0.00021123,2]
[391125340,1760371834596,-500.0,0.00021123,2]
[391125341,1760371834605,-500.0,0.00021123,2]
[391125342,1760371834614,-500.0,0.00021123,2]
[391125343,1760371834623,-500.0,0.00021123,2]
[391125344,1760371834632,-500.0,0.00021123,2]
[391125345,1760371834642,-500.0,0.00021123,2]
[391125346,1760371834651,-500.0,0.00021123,2]
[391125347,1760371834661,-500.0,0.00021123,2]
[391125348,1760371834670,-500.0,0.00021123,2]
[391125349,1760371834679,-500.0,0.00021123,2]
[391125350,1760371834688,-500.0,0.00021123,2]
[391125351,1760371834697,-500.0,0.00021123,2]
[391125352,1760371834707,-500.0,0.00021123,2]
[391125353,1760371834716,-500.0,0.00021123,2]
[391125354,1760371834725,-500.0,0.00021123,2]
[391125355,1760371834734,-500.0,0.00021123,2]
[391125356,1760371834743,-500.0,0.00021123,2]
[391125357,1760371834752,-500.0,0.00021123,2]
[391125358,1760371834762,-500.0,0.00021123,2]
[391125359,1760371834772,-500.0,0.00021123,2]
[391125360,1760371834781,-500.0,0.00021123,2]
[391125361,1760371834791,-500.0,0.00021123,2]
[391125362,1760371834800,-500.0,0.00021123,2]
[391125363,1760371834809,-500.0,0.00021123,2]
[391125364,1760371834819,-500.0,0.00021123,2]
[391125365,1760371834827,-500.0,0.00021123,2]
[391125366,1760371834837,-500.0,0.00021123,2]
[391125367,1760371834846,-500.0,0.00021123,2]
[391125368,1760371834856,-571.0,0.00021123,2]
[391125369,1760371834865,-500.0,0.00021123,2]
[391125370,1760371834874,-500.0,0.00021123,2]
[391125371,1760371834883,-500.0,0.00021123,2]
[391125372,1760371834896,-500.0,0.00021123,2]
[391125373,1760371834905,-500.0,0.00021123,2]
[391125374,1760371834914,-500.0,0.00021123,2]
[391125375,1760371834924,-500.0,0.00021123,2]
[391125376,1760371834933,-500.0,0.00021123,2]
[391125377,1760371834943,-500.0,0.00021123,2]
[391125378,1760371834952,-500.0,0.00021123,2]
[391125379,1760371834961,-500.0,0.00021123,2]
[391125380,1760371834970,-500.0,0.00021123,2]
[391125381,1760371834979,-500.0,0.00021123,2]
[391125382,1760371834988,-500.0,0.00021123,2]
[391125383,1760371834998,-500.0,0.00021123,2]
[391125384,1760371835006,-500.0,0.00021123,2]
[391125385,1760371835015,-500.0,0.00021123,2]
[391125386,1760371835025,-500.0,0.00021123,2]
[391125387,1760371835035,-500.0,0.00021123,2]
[391125388,1760371835044,-998.0,0.00021123,2]
[391125389,1760371835054,-500.0,0.000212,2]
[391125390,1760371835063,-187.71,0.00021432,2]
[391125391,1760371835073,-1152.0,0.00021517,2]
[391125392,1760371835083,-5000.0,0.00021918,2]
[391125393,1760371835093,-1474.21,0.00022401,30]
[391125394,1760371835108,-157.09,0.00022589,2]
[391125395,1760371835117,-640.0,0.00022895,2]
[391125396,1760371835126,-4796.99246513,0.00023368,2]
[391125397,1760371835169,-1124.87406304,0.00023368,2]
[391125398,1760371835184,-350.68615363,0.00023368,2]
[391125399,1760371835195,-515.087256,0.00023368,2]
[391125400,1760371835210,-3212.3500622,0.00023368,2]
[391125401,1760371835219,-538.1853598,0.000234,2]
[391125402,1760371835231,-1014.68785954,0.000234,2]
[391125403,1760371835242,-447.12678066,0.000234,2]
[391125404,1760371835517,-475.00914358,0.00024152,2]
[391125409,1760371837631,-360.82305914,0.00021122,2]
[391125410,1760371837643,-707.10172721,0.00024152,2]
[391125411,1760371837653,-167.25,0.00024253,2]
[391125412,1760371837663,-157.09,0.00024327,2]
[391125413,1760371837672,-2008.305,0.00024388,6]
[391125414,1760371837681,-176.078,0.00024388,6]
[391125415,1760371837691,-334.48,0.00024442,2]
[391125416,1760371837702,-1000.0,0.00024489,2]
[391125417,1760371837711,-2247.884,0.00024489,2]
[391125418,1760371837721,-500.0,0.00024589,2]
[391125419,1760371837730,-500.0,0.00024589,2]
[391125420,1760371837739,-500.0,0.00024589,2]
[391125421,1760371837749,-500.0,0.00024589,2]
[391125422,1760371837758,-612.25781954,0.00024589,2]
[391125423,1760371837767,-500.0,0.00024589,2]
[391125424,1760371837777,-500.0,0.00024589,2]
[391125425,1760371837786,-500.0,0.00024589,2]
[391125426,1760371837795,-500.0,0.00024589,2]
[391125427,1760371837805,-500.0,0.00024589,2]
[391125428,1760371837814,-500.0,0.00024589,2]
[391125429,1760371837823,-500.0,0.00024589,2]
[391125430,1760371837833,-500.0,0.00024589,2]
[391125431,1760371837843,-520.49455299,0.00024589,2]
[391125432,1760371837852,-866.14912017,0.00024589,2]
[391125433,1760371837863,-500.0,0.00024589,2]
[391125434,1760371837872,-500.0,0.00024589,2]
[391125435,1760371837883,-675.55392124,0.00024589,2]
[391125436,1760371837897,-502.61836046,0.00024589,2]
[391125437,1760371837907,-311.91969394,0.00024589,2]
[391125438,1760371837917,-277.19117016,0.00024589,2]
[391125439,1760371837927,-500.0,0.00024589,2]
[391125440,1760371837938,-500.0,0.00024589,2]
[391125442,1760371837947,-556.25059095,0.00024589,2]